Cogmind - Beta 15 @@@ ROGUE MODE // 2025.07.26 @ 16:18:12 Player: Waste Result: Destroyed by G-73 Enforcer with Phase Gun Performance ------------- Evolutions (8) 4000 Regions Visited (10) 2000 Robots Destroyed (109) 545 Value Destroyed (4008) 4008 Prototype IDs (32) 640 Alien Tech Used (1) 200 Bonus (2378) 2378 TOTAL SCORE: 13771 Bonus ------- High Alert Combat Kills 18 Follower Combat Kills 60 Forged Quantum Companion 1000 Registered with UFD 300 Met Optimus in HQ 500 Scanned by Researcher 500 Cogmind --------- Core Integrity 0/1450 Matter 57/300 Energy 92/100 System Corruption 32% Temperature Cool (0) Movement Core (50) Location -2/Testing Parts ------- > --- POWER (3) -------- (None) > --- PROPULSION (6) --- Centrium Leg > --- UTILITY (12) ----- Advanced Heat Sink Transport Network Coupler Advanced Target Analyzer Advanced Target Analyzer Improved Hacking Suite > --- WEAPON (2) ------- Quantum Companion > --- INVENTORY (5) ---- Myomer Leg Advanced Force Field Tactical Quantum Warhead Peak State ------------ > --- POWER ------------ Quantum Reactor Quantum Reactor Light Quantum Reactor > --- PROPULSION ------- Myomer Leg Advanced Myomer Leg Centrium Leg Centrium Leg Centrium Leg High-density Centrium Leg > --- UTILITY ---------- Experimental Power Amplifier Advanced Cryofiber Web Advanced Heat Sink Large Storage Unit Deep Structural Scanner Experimental Sensor Array Advanced Signal Interpreter Transport Network Coupler Advanced Target Analyzer Advanced Target Analyzer Improved Hacking Suite Improved Hacking Suite > --- WEAPON ----------- Quantum Companion > --- INVENTORY -------- Micro Antimatter Reactor Cooled Antimatter Reactor Myomer Leg Myomer Leg Myomer Leg Myomer Leg Advanced Cryofiber Web Advanced Force Field Advanced Force Field Advanced System Restoration Module Core Reset Matrix Heavy Phase Cannon Fusion Bomb Launcher Tactical Quantum Warhead Tactical Quantum Warhead [Rating: 169] Favorites ----------- Power Light Nuclear Core Engine Subdweller Power Source Power Core Light Nuclear Core Reactor Micro Antimatter Reactor Propulsion Cooled Airjet Treads Light Treads Leg Centrium Leg Wheel Compact Wheel Hover Unit Cooled Airjet Utility Improved Hacking Suite Device Deep Structural Scanner Storage Large Storage Unit Processor Advanced Signal Interpreter Hackware Improved Hacking Suite Protection Improved Utility Shielding Weapon Companion Sword Energy Gun Subdweller Laser Energy Cannon Subdweller Beam Cannon Ballistic Gun Subdweller Machine Gun Launcher Fusion Bomb Launcher Slashing Weapon Companion Sword Build | -11 -10 -10 -8 -6 -5 -4 -3 -3 -2 -2 ------- Run | Yrd Mat Sub Scr Fac Fac Fac Res Qua Res Tes Slots Evolved 16 | . . . . 8 2 2 2 . 2 . Power 2 | . . . . . 1 . 1 . . . Propulsion 4 | . . . . 3 1 . . . . . Utility 10 | . . . . 5 . 2 1 . 2 . Weapon . | . . . . . . . . . . . Parts Attached 125 | . 7 12 6 22 17 6 12 2 29 12 Power 18 | . 2 1 1 1 3 . 3 . 4 3 Engine 4 | . 1 1 . . . . . . 2 . Core 6 | . 1 . 1 1 3 . . . . . Reactor 8 | . . . . . . . 3 . 2 3 Propulsion 38 | . . 2 2 9 6 2 3 2 9 3 Treads 6 | . . 2 . 4 . . . . . . Leg 13 | . . . . 1 . . . 1 8 3 Wheel 6 | . . . 2 4 . . . . . . Hover 13 | . . . . . 6 2 3 1 1 . Flight . | . . . . . . . . . . . Utility 52 | . 2 2 2 10 7 4 6 . 14 5 Device 24 | . 1 1 . 3 1 2 6 . 6 4 Storage 4 | . 1 . 1 . 2 . . . . . Processor 6 | . . . . 1 2 . . . 3 . Hackware 4 | . . . . . 2 1 . . 1 . Protection 14 | . . 1 1 6 . 1 . . 4 1 Artifact . | . . . . . . . . . . . Weapon 17 | . 3 7 1 2 1 . . . 2 1 Energy Gun 5 | . 3 2 . . . . . . . . Energy Cannon 4 | . . 3 . . 1 . . . . . Ballistic Gun 2 | . . 2 . . . . . . . . Ballistic Cannon . | . . . . . . . . . . . Launcher 4 | . . . . 2 . . . . 1 1 Special Weapon . | . . . . . . . . . . . Impact Weapon . | . . . . . . . . . . . Slashing Weapon 2 | . . . 1 . . . . . 1 . Piercing Weapon . | . . . . . . . . . . . Special Melee Weapon . | . . . . . . . . . . . Unidentified Prototypes 10 | . . . 1 1 1 . . . 5 2 Corrupted Parts 1 | . . 1 . . . . . . . . System Corruption 1 | . . 1 . . . . . . . . Parts Lost 63 | . 2 4 . 22 . . 1 1 20 13 Power 11 | . 1 1 . 2 . . . . 4 3 Propulsion 24 | . . 2 . 11 . . 1 1 6 3 Utility 24 | . 1 . . 7 . . . . 10 6 Weapon 4 | . . 1 . 2 . . . . . 1 Highest Loss Streak 15 | . 1 2 . 14 . . 1 1 15 8 To Critical Strikes . | . . . . . . . . . . . Average Backups 12 | . 6 9 14 13 9 14 13 14 12 13 Power . | . . . . 1 . 1 . . . 1 Propulsion 4 | . 4 3 4 3 3 5 5 4 5 4 Utility 4 | . . . 4 6 4 6 6 6 3 3 Weapon 3 | . 2 5 4 1 . 1 1 2 1 3 Tool/Special . | . . . . . . . . . . . Unused Backups 53 | . 6 1 7 7 5 13 . 1 3 10 Power 6 | . 2 . . 3 . . . . . 1 Propulsion 21 | . . 1 3 2 3 7 . . 1 4 Utility 18 | . 2 . 1 2 2 6 . . 2 3 Weapon 7 | . 2 . 3 . . . . 1 . 1 Tool/Special 1 | . . . . . . . . . . 1 Average Slot Usage (%) 89 | . 92 94 88 83 79 94 94 92 82 92 Engine 3 | . 7 12 3 . . . . . 1 3 Core 5 | . 6 . 10 5 9 10 6 4 2 . Reactor 2 | . . . . . . . 6 9 5 8 Treads 10 | . . 17 24 9 . . . . . . Leg 5 | . 28 9 . . . . . . 8 25 Wheel 2 | . . . 3 19 . . . . . . Hover 9 | . . . . . 28 30 27 24 12 . Device 7 | . 7 1 . 3 9 10 13 14 14 20 Storage 8 | . 14 14 14 5 2 5 4 4 4 3 Processor 5 | . . . . 3 10 10 9 9 8 16 Hackware 5 | . . . . . 6 15 14 14 11 7 Protection 9 | . . 9 14 27 2 4 4 3 5 . Energy Gun 3 | . 17 12 2 . . . . . . . Energy Cannon 2 | . . 11 2 . . . . . . . Ballistic Gun 1 | . 10 4 . . . . . . . . Slashing Weapon 5 | . . . 11 5 4 5 4 4 4 4 Peak Build Rating 169 | . 10 12 19 42 94 104 125 127 155 169 Average Rating 63 | . 8 9 15 36 72 97 115 122 128 157 On Entrance 57 | 6 6 7 12 19 17 88 98 116 127 140 Naked Turns . | . . . . . . . . . . . Heaviest Build 99 | 13 30 42 54 84 46 48 64 51 76 99 Greatest Support 177 | 20 20 40 40 64 51 55 59 66 170 177 Greatest Overweight (x) 3 | . 1 2 2 3 3 1 1 1 3 . Average Overweight (x) . | . . . . . . . . . . . Largest Inventory Capacity 20 | . 15 15 20 20 15 15 15 15 15 15 Average Capacity 15 | . 11 15 17 19 10 15 15 15 15 14 Most Carried 20 | . 8 15 20 18 15 15 15 15 15 15 Average Carried 13 | . 7 10 16 14 9 14 14 14 12 13 Final Capacity 20 | 8 15 15 20 5 15 15 15 15 15 5 Final Carried 18 | 6 6 15 18 3 15 15 15 15 8 3 Class Distribution -------------------- 43% | Mutant 16% | Hacker-Ninja 12% | Hacker-Scout 10% | Derelict-Mutant 5% | Hacker-Assassin 4% | Scavenger-Assassin 3% | Hacker-Mutant Dominant Class ---------------- Mutant | -10/Materials Mutant | -10/Subcaves Mutant | -8/Scraptown Derelict-Mutant | -6/Factory Hacker-Scout | -5/Factory Hacker-Scout | -4/Factory Hacker-Ninja | -3/Research Hacker-Ninja | -3/Quarantine Hacker-Ninja | -2/Research Hacker-Assassin | -2/Testing Resources | -11 -10 -10 -8 -6 -5 -4 -3 -3 -2 -2 ----------- Run | Yrd Mat Sub Scr Fac Fac Fac Res Qua Res Tes Matter Collected 2353 | 200 84 205 30 248 270 196 185 161 516 258 Remotely . | . . . . . . . . . . . Salvage Created 5468 | . 282 425 . 610 525 228 214 331 1765 1088 Parts 284 | . 12 28 . 31 32 7 12 31 85 46 Haulers Intercepted 5 | . . . . 1 1 1 . 1 1 . Recyclers Shooed 3 | . 1 . . . . . 1 . 1 . Parts Field Recycled . | . . . . . . . . . . . Retrieved Matter . | . . . . . . . . . . . Parts Self-Destructed 14 | . . 14 . . . . . . . . Prevented . | . . . . . . . . . . . Kills | -11 -10 -10 -8 -6 -5 -4 -3 -3 -2 -2 ------- Run | Yrd Mat Sub Scr Fac Fac Fac Res Qua Res Tes Combat Hostiles Destroyed 61 | . 4 10 . 10 5 1 2 1 16 12 Melee 33 | . . . . 5 5 1 2 1 13 6 Guns 8 | . 4 4 . . . . . . . . Cannons 10 | . . 6 . . . . . . . 4 AOE 9 | . . . . 5 . . . . 3 1 Classes Destroyed 14 | . 3 2 . 6 1 1 1 . . . Worker 11 | . . . . . . . 2 1 5 3 Builder 14 | . . . . . 2 1 1 5 4 1 Tunneler 1 | . . . . 1 . . . . . . Hauler 5 | . . . . 1 1 1 . 1 1 . Recycler 9 | . 1 . . 1 2 . . . 4 1 Mechanic 3 | . 1 . . . . . . 1 . 1 Watcher 5 | . . . . . . 1 1 . 3 . Swarmer 13 | . . . . 4 5 . . . 4 . Saboteur 1 | . . . . 1 . . . . . . Grunt 21 | . 4 2 . . . . . . 6 9 Sentry 3 | . . 1 . 2 . . . . . . Hunter 1 | . . . . 1 . . . . . . Programmer 15 | . . . . 2 . 1 2 1 6 3 Subdweller 7 | . . 7 . . . . . . . . Best Kill Streak 9 | . 4 2 . 4 6 1 2 3 9 5 Combat Bots Only 6 | . 2 2 . 4 5 1 2 1 6 4 Max Kills in Single Turn 3 | . 2 1 . 3 1 1 1 1 3 1 Gunslinging . | . . . . . . . . . . . Exploded 3 | . . . . 3 . . . . 3 1 Melee 1 | . . . . 1 1 1 1 1 1 1 Uniques/NPCs Destroyed . | . . . . . . . . . . . Combat | -11 -10 -10 -8 -6 -5 -4 -3 -3 -2 -2 -------- Run | Yrd Mat Sub Scr Fac Fac Fac Res Qua Res Tes Hostile Shots Fired 944 | . 27 46 . 288 22 11 16 12 287 235 Missed 270 | . 5 9 . 91 6 5 4 3 89 58 Deflected 6 | . . . . . . . . . 2 4 Hits 674 | . 22 37 . 197 16 6 12 9 198 177 Melee 2 | . . . . . . . . . . 2 Projectile 672 | . 22 37 . 197 16 6 12 9 198 175 Critical Strikes 32 | . . . . 4 1 . . 1 14 12 Part Disruptions 3 | . . . . . . . 1 . 2 . Damage Taken 11860 | . 295 721 . 2505 239 117 293 232 4167 3291 Core 2442 | . 47 161 . 515 34 20 100 105 613 847 Absorbed by Shields 1030 | . . . . . . . . . 373 657 Redirected to Shielding 447 | . . 45 . 119 . 13 31 30 209 . Ignored by Resistances 274 | . . . . 185 . . . . 89 . Regen/Repaired (Parts) 156 | . . . . . 82 . . 74 . . Core Remaining (%) 72 | 100 . . 16 39 96 98 . 84 . . Volleys Fired 121 | . 21 34 . 5 10 24 6 . 12 9 Largest 2 | . 2 2 . 2 1 1 1 . 1 1 Hottest 160 | . 105 160 . 60 90 90 90 . 90 52 Shots Fired 172 | . 42 63 . 6 10 24 6 . 12 9 Gun 81 | . 42 39 . . . . . . . . Cannon 75 | . . 24 . . 10 24 6 . 11 . Launcher 16 | . . . . 6 . . . . 1 9 Special . | . . . . . . . . . . . Kinetic 35 | . 18 17 . . . . . . . . Thermal 116 | . 21 44 . . 10 24 6 . 11 . Explosive 16 | . . . . 6 . . . . 1 9 Electromagnetic 5 | . 3 2 . . . . . . . . Robot Hit Streak 14 | . 11 14 . 13 . . . . . 4 Robot Miss Streak 3 | . 3 1 . 1 . . . . . 1 Penetration Max . | . . . . . . . . . . . Secondary Targets . | . . . . . . . . . . . Autonomous 8 | . . . . . . . . . 4 4 Shots Hit Robots 272 | . 29 44 . 31 14 9 22 15 68 40 Core Hits 141 | . 11 13 . 26 9 3 4 9 36 30 Critical Kills . | . . . . . . . . . . . Critical Parts Destroyed 1 | . 1 . . . . . . . . . Critical Strikes 3 | . 1 . . . . . . . 2 . Destroy 1 | . 1 . . . . . . . . . Melee Attacks 350 | . . . . 42 26 35 35 46 115 51 Impact . | . . . . . . . . . . . Slashing 350 | . . . . 42 26 35 35 46 115 51 Piercing . | . . . . . . . . . . . Sneak Attacks 46 | . . . . 3 5 3 6 9 14 6 Combat Hostiles 1 | . . . . . . . . . . 1 Follow-up Attacks . | . . . . . . . . . . . Damage Inflicted 15725 | . 433 963 . 1750 837 487 1214 951 4859 4231 Guns 917 | . 327 590 . . . . . . . . Cannons 1064 | . . 373 . . . . . . 316 375 Explosions 2864 | . 98 . . 591 . . . . 624 1551 Melee 10867 | . . . . 1154 837 487 1214 951 3919 2305 Ramming 13 | . 8 . . 5 . . . . . . Kinetic 397 | . 88 309 . . . . . . . . Thermal 943 | . 312 631 . . . . . . . . Explosive 2766 | . . . . 591 . . . . 624 1551 Electromagnetic 48 | . 25 23 . . . . . . . . Impact . | . . . . . . . . . . . Slashing 10867 | . . . . 1154 837 487 1214 951 3919 2305 Piercing . | . . . . . . . . . . . Phasic 691 | . . . . . . . . . 316 375 Highest Corruption 32 | . 1 2 . 3 . 4 3 4 28 32 Average Corruption 8 | . 1 1 . 2 . 2 2 3 17 28 Corruption Purged . | . . . . . . . . . . . Corruption Blocked . | . . . . . . . . . . . Effects 100 | . 1 16 . 2 . 4 2 12 26 37 Message Errors 27 | . . 6 . 1 . 1 2 2 8 7 Matter Fused 32 | . 1 6 . . . 1 . 6 7 11 Heat Flow Errors 8 | . . 1 . . . . . 1 2 4 Energy Discharges 12 | . . 2 . . . 1 . 2 2 5 Parts Rejected 2 | . . . . 1 . . . . . 1 Data Loss (minor) 9 | . . 1 . . . . . . 3 5 Data Loss (major) 3 | . . . . . . 1 . 1 . 1 Alerts 1 | . . . . . . . . . . 1 Misdirections 6 | . . . . . . . . . 4 2 Overload Shots . | . . . . . . . . . . . Overflow Damage 1617 | . 18 . . 37 59 72 351 68 717 295 Projectiles 20 | . . . . . . . . . 20 . Explosions 147 | . 18 . . 24 . . . . . 105 Melee 1450 | . . . . 13 59 72 351 68 697 190 Knockbacks . | . . . . . . . . . . . Impact . | . . . . . . . . . . . Kinetic . | . . . . . . . . . . . Secondary . | . . . . . . . . . . . Self-Inflicted Damage 195 | . 32 . . 51 . . . . 48 64 Shots 6 | . 1 . . 2 . . . . 1 2 Rammed 1 | . . . . 1 . . . . . . Targets Rammed 2 | . 1 . . 1 . . . . . . Kicked 1 | . 1 . . . . . . . . . Crushed . | . . . . . . . . . . . Highest Temperature 412 | . 412 142 . 7 88 266 174 227 253 137 Average Temperature 65 | . 173 27 . 3 46 90 54 123 47 63 Received Heat Transfer 1300 | . 147 216 . 240 . . 9 . 208 480 Effects 2 | . 2 . . . . . . . . . Short Circuit 1 | . 1 . . . . . . . . . Damage (minor) 1 | . 1 . . . . . . . . . Siege Activations . | . . . . . . . . . . . Martial Activations . | . . . . . . . . . . . Shielding Activations . | . . . . . . . . . . . Robots Disrupted 5 | . . . . . 1 . . . 1 3 Combat Hostiles 4 | . . . . . . . . . 1 3 Robots Corrupted . | . . . . . . . . . . . Combat Hostiles . | . . . . . . . . . . . Parts Fried . | . . . . . . . . . . . Impact Corruptions . | . . . . . . . . . . . Robots Melted . | . . . . . . . . . . . Combat Hostiles . | . . . . . . . . . . . Parts Melted 7 | . 3 2 . . . . . . . 2 Heat Transferred 1622 | . 670 952 . . . . . . . . Parts Sabotaged 4 | . . . . . . . . . . 4 Parts Stolen . | . . . . . . . . . . . Parts Stripped 17 | . . . . . . . . . 10 7 Power Chain Reactions 1 | . 1 . . . . . . . . . Alert | -11 -10 -10 -8 -6 -5 -4 -3 -3 -2 -2 ------- Run | Yrd Mat Sub Scr Fac Fac Fac Res Qua Res Tes Maximum Alert Level 2 | . . . . . 1 . . . 2 2 Low Security (%) 87 | . 100 . . 100 99 100 100 100 58 76 Level 1 11 | . . . . . . . . . 38 18 Level 2 1 | . . . . . . . . . 2 4 Level 3 . | . . . . . . . . . . . Level 4 . | . . . . . . . . . . . Level 5 . | . . . . . . . . . . . High Security . | . . . . . . . . . . . Max Security . | . . . . . . . . . . . Peak Influence 510 | . 63 . . 98 202 93 40 52 411 510 Initial 224 | . . . . . . 93 6 . 16 224 Average 84 | . 21 . . 21 110 24 9 24 162 194 Influence Increases 3369 | . 113 70 . 332 432 227 164 278 1051 702 Destroy 0b10 Robot/C 1160 | . 80 60 . 200 140 20 40 20 340 260 Destroy 0b10 Robot/NC 245 | . 10 . . 15 30 15 20 40 85 30 Destroy Leader 240 | . 20 10 . 62 22 4 12 12 48 50 Allied During Kill 14 | . . . . . . . . . . 14 Successful Hack 343 | . . . . 26 78 18 56 94 35 36 Disable Machine 75 | . . . . . . 15 . 30 . 30 Destroy Structure 677 | . 3 . . 29 42 80 36 52 168 267 Partial Spotted 120 | . . . . . 30 30 . . 60 . Lose Combat Pursuer 495 | . . . . . 90 45 . 30 315 15 Influence Decreases 2937 | . 80 103 . 332 242 405 176 248 682 669 Entered New Map 309 | . . 17 . . . 97 6 . 14 175 Time Decay 2082 | . 80 86 . 230 242 308 160 228 414 334 Lost Part 452 | . . . . 102 . . 10 10 200 130 Lost Ally 94 | . . . . . . . . 10 54 30 Squads Dispatched 44 | . 1 . . 4 9 8 2 2 9 9 Investigation 17 | . 1 . . 1 6 4 . . 4 1 Extermination 16 | . . . . 2 2 3 1 2 4 2 Reinforcement 8 | . . . . 1 1 1 1 . 1 3 Assault 2 | . . . . . . . . . . 2 Garrison 1 | . . . . . . . . . . 1 Intercept . | . . . . . . . . . . . Searches Triggered . | . . . . . . . . . . . Construction Impeded 2 | . . . . 1 . . . . . 1 Haulers Reinforced 1 | . . . . . 1 . . . . . Active Scanning Responses . | . . . . . . . . . . . Cargo Convoy Interrupts 1 | . . . . 1 . . . . . . Stealth | -11 -10 -10 -8 -6 -5 -4 -3 -3 -2 -2 --------- Run | Yrd Mat Sub Scr Fac Fac Fac Res Qua Res Tes Distress Signals 8 | . . . . . 1 2 . 1 3 1 Communications Jammed 52 | . . . . . . . . 2 50 . Distress Signals 21 | . . . . . . . . 2 19 . Times Spotted 175 | . 4 10 . 27 15 7 11 8 53 40 Peak Tracking Total 17 | . 3 2 . 12 5 4 4 3 10 17 Tactical Retreats 18 | . . . . . 4 3 . 2 8 1 Traps | -11 -10 -10 -8 -6 -5 -4 -3 -3 -2 -2 ------- Run | Yrd Mat Sub Scr Fac Fac Fac Res Qua Res Tes Traps Triggered 13 | . 2 . . 1 2 5 1 . 1 1 Indirectly . | . . . . . . . . . . . Trap Hack Attempts . | . . . . . . . . . . . Triggered . | . . . . . . . . . . . Disarmed . | . . . . . . . . . . . Reprogrammed . | . . . . . . . . . . . Reused . | . . . . . . . . . . . Traps Extracted . | . . . . . . . . . . . Installed . | . . . . . . . . . . . Triggered . | . . . . . . . . . . . Machines | -11 -10 -10 -8 -6 -5 -4 -3 -3 -2 -2 ---------- Run | Yrd Mat Sub Scr Fac Fac Fac Res Qua Res Tes Machines Disabled 5 | . . . . . . 1 . 2 . 2 Max in Single Turn 1 | . . . . . . 1 . 1 . 1 Garrison Access 7 | . . . . . . 1 1 1 3 1 Machines Repaired . | . . . . . . . . . . . Machines Dismantled . | . . . . . . . . . . . Machines Sabotaged . | . . . . . . . . . . . Overloaded Fab Kills . | . . . . . . . . . . . Hacking | -11 -10 -10 -8 -6 -5 -4 -3 -3 -2 -2 --------- Run | Yrd Mat Sub Scr Fac Fac Fac Res Qua Res Tes Machines Accessed 73 | . 2 1 3 8 10 13 8 11 10 7 Terminals 40 | . 2 . . 5 3 6 6 7 5 6 Fabricators 4 | . . . . . 2 2 . . . . Repair Stations 2 | . . . . . 1 . . 1 . . Recycling Units 8 | . . . . 1 4 2 . . 1 . Scanalyzers 8 | . . . . 1 . 2 1 2 1 1 Garrison Access 7 | . . . . 1 . 1 1 1 3 . Total Hacks 182 | . 6 4 26 19 22 30 15 29 20 11 Successful 115 | . 1 4 26 8 14 20 10 19 9 4 Failed 66 | . 5 . . 11 8 9 5 10 11 7 Catastrophic 8 | . 1 . . 1 1 . 1 2 1 1 Database Lockouts 1 | . . . . . . 1 . . . . Manual 91 | . 7 . . 14 12 20 9 17 6 6 Terminals 97 | . 6 . . 13 7 20 10 21 11 9 Fabricators 12 | . . . . . 8 4 . . . . Repair Stations 4 | . . . . . 2 . . 2 . . Recycling Units 10 | . . . . 1 5 2 . . 2 . Scanalyzers 17 | . . . . 2 . 3 3 4 3 2 Garrison Access 12 | . . . . 3 . 1 2 2 4 . Terminal Hacks 58 | . 1 4 26 1 2 11 3 7 2 1 Record 28 | . . 4 24 . . . . . . . Part Schematic 5 | . . . . . . 3 . 2 . . Robot Analysis 2 | . 1 . . . . 1 . . . . Prototype ID Bank 1 | . . . . . . . . 1 . . Open Door 2 | . . . 1 . . . 1 . . . Level Access Points 2 | . . . . . . 1 . 1 . . Branch Access Points 4 | . . . . . 1 1 1 . 1 . Machine Index 1 | . . . . . 1 . . . . . Terminal Index 3 | . . . . 1 . 1 1 . . . Locate Traps 2 | . . . . . . 1 . 1 . . Recall Investigation 3 | . . . . . . 2 . . . 1 Recall Extermination 2 | . . . . . . . . 1 1 . Zone Layout 2 | . . . . . . 1 . 1 . . Proto ID Catalog 1 | . . . 1 . . . . . . . Fabricator Hacks 3 | . . . . . 2 1 . . . . Network Status 3 | . . . . . 2 1 . . . . Repair Station Hacks 4 | . . . . . 2 . . 2 . . Scan Component 2 | . . . . . 1 . . 1 . . Repair 2 | . . . . . 1 . . 1 . . Recycling Unit Hacks . | . . . . . . . . . . . Scanalyzer 14 | . . . . 2 . 3 2 4 2 1 Insert Component 9 | . . . . 1 . 2 1 3 1 1 Analyze 5 | . . . . 1 . 1 1 1 1 . Garrison Access Hacks 6 | . . . . . . 1 1 1 3 . Seal Access 6 | . . . . . . 1 1 1 3 . Unauthorized Hacks 30 | . . . . 5 8 4 4 5 2 2 Terminals 20 | . . . . 4 2 2 4 5 1 2 Track 1 | . . . . . . . . 1 . . Assimilate 4 | . . . . . 1 . . 1 1 1 Botnet 9 | . . . . 2 1 1 1 3 . 1 Skim 6 | . . . . 2 . 1 3 . . . Fabricators 2 | . . . . . 2 . . . . . Report 1 | . . . . . 1 . . . . . Haulers 1 | . . . . . 1 . . . . . Repair Stations . | . . . . . . . . . . . Recycling Units 8 | . . . . 1 4 2 . . 1 . Fedlink 7 | . . . . 1 4 2 . . . . Scrapoids 1 | . . . . . . . . . 1 . Scanalyzers . | . . . . . . . . . . . Garrison Access . | . . . . . . . . . . . Data Cores Recovered . | . . . . . . . . . . . Used . | . . . . . . . . . . . Hacking Detections 52 | . 2 . . 6 6 9 5 11 7 6 Full Trace Events 3 | . . . . . . . . . 3 . Feedback Events . | . . . . . . . . . . . Feedback Blocked . | . . . . . . . . . . . Robot Schematics Acquired . | . . . . . . . . . . . Robots Built . | . . . . . . . . . . . Authchips . | . . . . . . . . . . . Time . | . . . . . . . . . . . Total Robot Build Rating . | . . . . . . . . . . . Part Schematics Acquired 9 | . . . . 1 . 4 1 2 1 . Parts Built . | . . . . . . . . . . . Authchips . | . . . . . . . . . . . Time . | . . . . . . . . . . . Total Part Build Rating . | . . . . . . . . . . . Parts Repaired 2 | . . . . . 1 . . 1 . . Time 31 | . . . . . 12 . . 19 . . Parts Recycled . | . . . . . . . . . . . Recycled Matter . | . . . . . . . . . . . Retrieved Matter . | . . . . . . . . . . . Retrieved Components . | . . . . . . . . . . . Parts Scanalyzed 5 | . . . . 1 . 1 1 1 1 . Part Schematics Acquired 5 | . . . . 1 . 1 1 1 1 . Parts Damaged . | . . . . . . . . . . . Bothacking | -11 -10 -10 -8 -6 -5 -4 -3 -3 -2 -2 ------------ Run | Yrd Mat Sub Scr Fac Fac Fac Res Qua Res Tes Used RIF Installer . | . . . . . . . . . . . Robots Hacked . | . . . . . . . . . . . Non-combat . | . . . . . . . . . . . Combat . | . . . . . . . . . . . Robot Hacks Applied . | . . . . . . . . . . . Relay Couplers Released 3 | . . . . . . . . . . 3 Programmers 3 | . . . . . . . . . . 3 Fabnet Peak Effective % . | . . . . . . . . . . . Robots Rewired 2 | . . . . . 1 . . . . 1 Allies Hacked . | . . . . . . . . . . . Hacks Repelled . | . . . . . . . . . . . Allies | -11 -10 -10 -8 -6 -5 -4 -3 -3 -2 -2 -------- Run | Yrd Mat Sub Scr Fac Fac Fac Res Qua Res Tes Total Allies 10 | . . . . . 1 . . 1 6 2 Largest Group 3 | . . . . . 1 . . 1 3 1 Highest-Rated Group 192 | . . . . . 49 . . 45 192 53 Highest-Rated Ally 64 | . . . . . 49 . . 45 64 53 Total Orders . | . . . . . . . . . . . Ally Attacks 40 | . . . . . 11 . . . 24 5 Total Damage 1137 | . . . . . 306 . . . 692 139 Kills 6 | . . . . . 3 . . . 2 1 Allies Corrupted 2 | . . . . . 1 . . . 1 . Allies Melted . | . . . . . . . . . . . Intel | -11 -10 -10 -8 -6 -5 -4 -3 -3 -2 -2 ------- Run | Yrd Mat Sub Scr Fac Fac Fac Res Qua Res Tes Active Infowar (turns) 4788 | . 142 207 . 303 506 839 505 570 969 747 Optics 207 | . . 207 . . . . . . . . Sensors 3762 | . . . . . 506 837 464 547 777 631 Structural 4113 | . . . . 303 487 839 478 548 878 580 Seismic 142 | . 142 . . . . . . . . . T.N.C. 946 | . . . . . . . . . 199 747 Jamming 1842 | . . . . . . 28 478 570 766 . Robot Analysis Total 2 | . 1 . . . . 1 . . . . Derelict Logs Recovered 5 | . . . 5 . . . . . . . Drone Launches . | . . . . . . . . . . . Drone Recoveries . | . . . . . . . . . . . Exploration | -11 -10 -10 -8 -6 -5 -4 -3 -3 -2 -2 ------------- Run | Yrd Mat Sub Scr Fac Fac Fac Res Qua Res Tes Turns Passed 9539 | . 271 1595 2450 779 576 856 505 570 1190 747 Spaces Moved 8846 | 1 117 735 1425 532 1182 1582 718 811 1300 443 Core 95 | . . . . 35 59 . . . . 1 Treads 1819 | . . 598 1199 22 . . . . . . Legs 855 | 1 117 137 . . . . . . 158 442 Wheels 701 | . . . 226 475 . . . . . . Hover 5376 | . . . . . 1123 1582 718 811 1142 . Flight . | . . . . . . . . . . . Fastest Speed 31 | 120 120 160 120 50 31 31 36 38 42 50 Average Speed 84 | 120 148 193 169 111 34 31 37 53 56 119 Slowest Speed 410 | 120 190 320 240 410 200 98 104 114 300 120 Overloaded Moves 8 | . . . . . . . . . 8 . Propulsion Burnouts . | . . . . . . . . . . . Robots Hopped . | . . . . . . . . . . . Potential Cave-ins 4 | . . . . . . 4 . . . . Cave-ins Triggered . | . . . . . . . . . . . Exploration Rate (%) 39 | 1 22 41 86 14 30 43 25 84 39 53 Regions Visited 10 Branch Regions 4 Pre-discovered Areas 7 | . . . 6 . 1 . . . . . Known Exits Taken 6 | . . . . 1 1 1 1 1 1 . Unknown Exits Taken 4 | 1 1 1 1 . . . . . . . Scrap Searched 6 | . . 2 4 . . . . . . . Spaces Dug 156 | . . . . 8 14 31 15 26 55 7 Terrain Destroyed 313 | . 2 3 . 33 19 47 18 26 60 105 Melee 111 | . . . . 8 9 23 12 26 26 7 Projectile 54 | . . 3 . . 10 24 6 . 11 . AOE 148 | . 2 . . 25 . . . . 23 98 Terrain Rammed . | . . . . . . . . . . . Walls Destroyed . | . . . . . . . . . . . Machines Disabled . | . . . . . . . . . . . Actions | -11 -10 -10 -8 -6 -5 -4 -3 -3 -2 -2 --------- Run | Yrd Mat Sub Scr Fac Fac Fac Res Qua Res Tes Total 10265 | . 174 842 1455 648 1302 1878 908 885 1594 579 Wait 497 | . 25 45 . 17 24 169 111 10 79 17 Move 8836 | . 116 734 1424 531 1181 1581 717 810 1299 443 Hop . | . . . . . . . . . . . Pick Up 104 | . 2 12 14 11 19 19 2 5 9 11 Fast Attach 51 | . 1 2 1 6 12 5 2 2 16 4 Attach 69 | . 1 3 . 17 9 9 4 1 20 5 Detach 25 | . . . . 1 7 7 2 1 6 1 Swap 79 | . 5 9 5 6 4 9 12 5 14 10 Drop 84 | . 2 3 11 11 7 20 4 5 8 13 Fire 121 | . 21 34 . 5 10 24 6 . 12 9 Melee 350 | . . . . 42 26 35 35 46 115 51 Ram 1 | . . . . 1 . . . . . . Kick 1 | . 1 . . . . . . . . . Crush . | . . . . . . . . . . . Escape Stasis 18 | . . . . . . . 13 . . 5 Rewire 29 | . . . . . 3 . . . 16 10 Trap . | . . . . . . . . . . . Miscellaneous . | . . . . . . . . . . . Route ------- -11/Scrapyard -10/Materials (discovered 2 exits: [*Min] / *Sub) -10/Subcaves (discovered 4 exits: *Mat x2 / Rec / *Scr) -8/Scraptown (discovered 2 exits: *Fac x2) -6/Factory (discovered 6 exits: *Fac x4 / *Low x2) -5/Factory (discovered 3 exits: *Fac / Upp x2) -4/Factory (discovered 8 exits: *Res x4 / *Upp x2 / Ext x2) -3/Research (discovered 3 exits: Arm / *Qua x2) -3/Quarantine -2/Research (discovered 2 exits: *Tes x2) -2/Testing (discovered 1 exit: [*Acc]) History --------- Turn | Location | Event 1 | -11/Scrapyard | Discovered new exit (range 0) 1 | -11/Scrapyard | Entered Materials 256 | -10/Materials | Discovered new exit (range 16) 264 | -10/Materials | Discovered new exit (range 6) 272 | -10/Materials | Entered Subcaves 273 | -10/Subcaves | Approached by a straggling Scientist 311 | -10/Subcaves | Build established: Mutant 483 | -10/Subcaves | Shifting Twisted Machinery released Sub. Power Source 483 | -10/Subcaves | Discovered new exit (range 8) 500 | -10/Subcaves | Shifting Twisted Machinery released Sub. Machine Gun 508 | -10/Subcaves | Shifting Twisted Machinery released Sub. Optics 524 | -10/Subcaves | Shifting Twisted Machinery released Battle Cannon 1164 | -10/Subcaves | Core integrity fell below 50% 1549 | -10/Subcaves | Visited Clippyterm 1554 | -10/Subcaves | Identified exit to Materials 1554 | -10/Subcaves | Identified exit to Recycling 1554 | -10/Subcaves | Learned Factory garrison access intel 1596 | -10/Subcaves | Core integrity fell below 20% 1867 | -10/Subcaves | Entered Scraptown 1867 | -8/Scraptown | System corruption cleaned by C-Scrubber 2023 | -8/Scraptown | Visited UFD Registry 2023 | -8/Scraptown | Registered with UFD as "Laserrigger" 2106 | -8/Scraptown | Scanned Subdweller tech in exchange for log data 2109 | -8/Scraptown | Learned Research machine intel 2111 | -8/Scraptown | Learned Research terminal intel 2112 | -8/Scraptown | Learned Research stockpile data 2114 | -8/Scraptown | Learned Research interactive machine intel 2115 | -8/Scraptown | Learned location of Quarantine (-3) 2339 | -8/Scraptown | Visited Sword Containment 2446 | -8/Scraptown | Delivered Scrap Shield to a Scientist 2638 | -8/Scraptown | Visited Cartography Club 2667 | -8/Scraptown | Visited Chapter 10 2693 | -8/Scraptown | Visited Research Penetration Think Tank 2731 | -8/Scraptown | Visited Curators Association 2837 | -8/Scraptown | Visited Fellowship of the Rings 2861 | -8/Scraptown | Visited Spacefarers 2881 | -8/Scraptown | Visited SPCMW 2904 | -8/Scraptown | Visited Awakened 2949 | -8/Scraptown | Discovered new exit (range 11) 3017 | -8/Scraptown | Guru changed UFD alias to "Micronuts" 3687 | -8/Scraptown | Visited Supply Room 3742 | -8/Scraptown | Visited Science Guys 3814 | -8/Scraptown | Visited Infowarlord's Domain 3828 | -8/Scraptown | Found Exp. Sensor Array 4104 | -8/Scraptown | Found Deep Structural Scanner 4116 | -8/Scraptown | Learned location of Storage (-8) 4116 | -8/Scraptown | Learned location of Extension (-4) 4116 | -8/Scraptown | Learned location of Cetus (-4) 4116 | -8/Scraptown | Learned location of Hub_04(d) (-4) 4116 | -8/Scraptown | Learned location of Testing (-2) 4116 | -8/Scraptown | Learned 8 Factory zone layouts 4116 | -8/Scraptown | Learned 24 Factory zone layouts 4116 | -8/Scraptown | Learned 12 Lower Caves zone layouts 4116 | -8/Scraptown | Learned 4 Access zone layouts 4116 | -8/Scraptown | Learned 4 Recycling zone layouts 4116 | -8/Scraptown | Learned 16 Lower Caves zone layouts 4116 | -8/Scraptown | Learned 12 Proximity Caves zone layouts 4116 | -8/Scraptown | Learned 20 Lower Caves zone layouts 4116 | -8/Scraptown | Learned 20 Upper Caves zone layouts 4116 | -8/Scraptown | Learned 16 Proximity Caves zone layouts 4116 | -8/Scraptown | Learned Storage emergency access door positions 4116 | -8/Scraptown | Learned location of 3 exits from Factory 4116 | -8/Scraptown | Learned location of 2 exits from Upper Caves 4116 | -8/Scraptown | Learned location of 3 exits from Proximity Caves 4252 | -8/Scraptown | Met Optimus 4252 | -8/Scraptown | Accepted into 0bPrime 4311 | -8/Scraptown | Discovered new exit (range 5) 4317 | -8/Scraptown | Entered Factory 4317 | -6/Factory | Evolved 8 slots: Propulsion x3, Utility x5 4318 | -6/Factory | Identified exit to Factory 4318 | -6/Factory | Identified exit to Lower Caves 4320 | -6/Factory | Loaded intel: 4 garrison access locations 4343 | -6/Factory | Discovered exit to Lower Caves (range 5) 4370 | -6/Factory | Build established: Derelict-Mutant 4573 | -6/Factory | Loaded intel: 8 recycling unit locations 4762 | -6/Factory | Lost 5 parts (3n2u) 5007 | -6/Factory | Allied Derelicts emerged from ambush trap array 5061 | -6/Factory | Cargo convoy interrupted 5066 | -6/Factory | P-60 Hacker assimilated allied D4-NQP(g) 5081 | -6/Factory | Core integrity fell below 50% 5096 | -6/Factory | Entered another Factory area 5096 | -5/Factory | Evolved 2 slots: Power x1, Propulsion x1 5097 | -5/Factory | Identified exit to Upper Caves 5107 | -5/Factory | Lost 14 parts (1p7n4u2w) 5276 | -5/Factory | Discovered new exit (range 6) 5278 | -5/Factory | Identified exit to Factory 5315 | -5/Factory | Repaired Imp. Utility Shielding 5490 | -5/Factory | Loaded intel: 8 recycling unit locations 5490 | -5/Factory | Learned location of Protoforge (-2) 5590 | -5/Factory | Build established: Hacker-Scout 5672 | -5/Factory | Entered another Factory area 5672 | -4/Factory | Evolved 2 slots: Utility x2 5673 | -4/Factory | Identified exit to Research 5673 | -4/Factory | Identified exit to Upper Caves 5673 | -4/Factory | Identified exit to Extension 5997 | -4/Factory | Central database locked down 6089 | -4/Factory | Loaded intel: 8 recycling unit locations 6528 | -4/Factory | Entered Research 6528 | -3/Research | Evolved 2 slots: Power x1, Utility x1 6530 | -3/Research | Loaded intel: 120 machine locations 6531 | -3/Research | Loaded intel: 49 interactive machine locations 6532 | -3/Research | Loaded intel: 26 terminal locations 6671 | -3/Research | Identified exit to Armory 6671 | -3/Research | Identified exit to Quarantine 6857 | -3/Research | Build established: Hacker-Ninja 7033 | -3/Research | Entered Quarantine 7058 | -3/Quarantine | Identified exit to Research 7205 | -3/Quarantine | Found Alien Artifact 7234 | -3/Quarantine | Found Alien Artifact 7317 | -3/Quarantine | Found Fusion Bomb Launcher 7349 | -3/Quarantine | Identified Core Reset Matrix 7349 | -3/Quarantine | Identified Subatomic Replicator 7509 | -3/Quarantine | Repaired Imp. Utility Shielding? 7603 | -3/Quarantine | Entered Research 7603 | -2/Research | Evolved 2 slots: Utility x2 7986 | -2/Research | Scrapoids reinforcements arrived? 8036 | -2/Research | Lost 4 allies 8203 | -2/Research | Found Prototype Processor 8219 | -2/Research | Identified exit to Testing 8373 | -2/Research | System corruption reached 10% 8461 | -2/Research | Lost 15 parts (3p5n7u) 8498 | -2/Research | Forged Prototype Slashing Weapon 8502 | -2/Research | Identified Exp. Targeting Computer 8793 | -2/Research | Entered Testing 8923 | -2/Testing | Found Prototype Launcher 8925 | -2/Testing | Found Prototype Launcher 8962 | -2/Testing | Identified Tactical Quantum Warhead (x2) 8993 | -2/Testing | Build established: Scavenger-Assassin 8997 | -2/Testing | Discovered new exit (range 16) 9409 | -2/Testing | Build established: Hacker-Assassin 9448 | -2/Testing | Garrison activated, responded to threat 9465 | -2/Testing | System corruption reached 30% 9477 | -2/Testing | Core integrity fell below 50% 9524 | -2/Testing | Lost 3 parts (2p1u) 9530 | -2/Testing | Scanned by Researcher 9537 | -2/Testing | Core integrity fell below 20% 9540 | -2/Testing | Destroyed by G-73 Enforcer with Phase Gun Last Messages --------------- 09533_ Dropped Centrium Light Armor Plating. 09533_ ALERT: Hostiles spotted, dispatching reinforcements to Terminal T001. 09534_ The unstable cave ceiling collapses. 09534_ Dropped Adv. Heat Sink. 09534_ Adv. Signal Interpreter destroyed. 09534_ Critical hit (Burn: +37). 09534_ Adv. Cryofiber Web destroyed. 09534_ Held in stasis. 09534_ C-65 Expert is analyzing... 09534_ Dropped Lrg. Storage Unit. 09535_ System corrupted: Matter fused (-5). 09535_ The unstable cave ceiling collapses. 09535_ Tactical Quantum Warhead destroyed. 09535_ Dropped Adv. System Restoration Module. 09535_ Dropped Adv. Cryofiber Web. 09538_ Held in stasis. 09538_ C-65 Expert is analyzing... 09539_ Imp. Hacking Suite destroyed. 09540_ The unstable cave ceiling collapses. Map ----- +----------------------------------------------------+ | ??????????????????????????????????????############ | | ?????????????????????????????????######### ### | | ?????????????????????????????????######### """ ### | | ?????????????????????????????????######### "T" ### | | ?????????????????????????????????######### " " ### | | ?????????????????????????????????#### + ### | | ?????????????????????????????????#### # ### | | ?????????????????????????????????#### # ### | | ?????????????????????????????????#### ##+###### | | ?????????????????????????????????#### ###### | | ??????????????????????????????####### ###### | | ??????????????????????????????####### T"#### | | ??????????????????????????????####### ^^ ^ ""#### | | ??????????????????????????????#### # ^^ ^ ###### | | ????????????????????????###???### ###### | | ???????????????????????? #???## ###### | | ??????????????????#????? #??### ###### | | ??????????????????# ???? ### ###### | | ??????????????????# ???u # ########## | | ??????????? ????# ?##% ### | | ?????????? =??# #g gg # """### | | ??????????? # # g % # T"### | | ??????????????? w su#] [ """### | | ??????????????????# sss!e! g ! ### | | ??????????????????# s*!*=b # % =[ ### | | ####### ??????# !=!@ ig * !"""" ### | | ####### ??????# ][! g # %[ # """" ### | | ##########??????# %=### """" ### | | ##########??????# ## ![### """" ### | | # ?????# ?# # ! ### ### | | # ?????# u ? = ######+##### | | # ?????# ?? # ###### ##### | | ? + # ?? # ###### ##### | | ?#### # # ?? ## ####### ##### | | ?#### # # ??? ## #??#### ####? | | ?#### #####+#### ? ? c "" ## #??#### ####? | | ?#### ? ? " "" ## #??#### ####? | | ##### # """ ? ## #??#### ####? | | ##### + """" ## ####### ####? | | ##### # ""??" ## ####### ####? | | ########+######/###### # ""??? ## ####### ####? | | ## * ! ! # ### # ""??? ## ####### ####? | | ## + ### # "??? # ### ####? | | ## """ """ # """ ### # "???" / ### ####? | | ## """ """ # """ ### # ???" # ### ####? | | ## """ """ # """ ### # # ### ##### | | ## # """ ### ########### ### ##### | | ## """ """ # """ ###*########### ### ##### | | ## """T""" # """ ###%########### ### ##### | | ############ # [ + | +----------------------------------------------------+ Best States ------------- Heat Dissipation 125 Energy Generation 89 Energy Capacity 690 Matter Stores 300 Matter Capacity 300 Sight Range 21 Robot Scan Range 20 Terrain Scan Density 10 Jamming Range 16 Power Amplification 40 Base Temperature (-) 200 Armor Coverage 750 Resistance: KI 20 Resistance: TH 25 Propulsion Shielding 33 Utility Shielding 66 Melee Speed Boost 50 Evasion (%) 70 Targeting Accuracy 8 Melee Accuracy 8 Target Analysis 12 Recoil Reduction 2 Offensive Hacking 38 Item Schematics ----------------- Utility Shielding | -6/Factory | Scanalyzed Exp. Optical Array | -4/Factory | Scanalyzed Nanoactuators | -4/Factory | Hacked Adv. Phase Shifter | -4/Factory | Hacked Imp. Cloaking Device | -4/Factory | Hacked Lyr. Medium Armor Plating | -3/Research | Scanalyzed Exp. Utility Shielding | -3/Quarantine | Hacked Adv. Reaction Control System | -3/Quarantine | Scanalyzed Centrium Leg | -2/Research | Scanalyzed Robot Schematics ------------------ None Fabricated ------------ Nothing Repaired ---------- Imp. Utility Shielding | 18% | -5/Factory Imp. Utility Shielding | 26% | -3/Quarantine Alien Tech Used ----------------- Subatomic Replicator Achievements -------------- None Challenges ------------ None Game ------ Seed ImprinterRocketShotgun Manual? 0 Play Time 01:30:08 Cumulative 403.0 hours Start 2025.07.24 @ 18:40:56 End 2025.07.26 @ 16:18:12 Sessions 5 Manual Loads 0 Difficulty Rogue Special Mode None Game No. 504 Rogue 504 Adventurer 0 Explorer 0 Win Type - Total 31 Types 15/1/9/1/1/1/0/1/1/1 Lore% 87 Gallery% 80 Achievement% 77 Wizard Run 0 Options --------- Layout 0 ASCII 0 Keyboard 0 Movement Numpad Keybinds 0 Fullscreen 1 Font 18/SmallcapsGlow Map View 76x50 Zoom Use 0% Tactical HUD 1 Map Filters NONE Filters NONE Steam 1 RUN: 1e538045-b4a9-41d1-88e4-fe21cd613e41